Cogmind - Beta 17 @@@ ROGUE MODE // 2026.07.22 @ 21:56:11 Player: Suffixing Result: Destroyed by D-53 Grenadier with Mini Grenade Launcher Performance ------------- Evolutions (0) 0 Regions Visited (3) 600 Robots Destroyed (30) 150 Value Destroyed (521) 521 Prototype IDs (23) 460 Alien Tech Used (0) 0 Bonus (300) 300 TOTAL SCORE: 2031 Bonus ------- Aligned with FarCom 300 Cogmind --------- Core Integrity 0/250 Matter 300/300 Energy 100/100 System Corruption 0% Temperature Cool (0) Movement Core (1350) Ox26 Location -10/Exiles Parts ------- > --- POWER (1) -------- (None) > --- PROPULSION (2) --- (None) > --- UTILITY (2) ------ Huge Storage Unit > --- WEAPON (2) ------- (None) > --- INVENTORY (25) --- Ion Engine Ion Engine Light Treads Wheel Improved Heat Sink Large Storage Unit Superbattery (1500) Hacking Suite EM Pulse Gun Light Cannon Light Cannon Light Cannon Light Cannon Light Cannon Light Cannon Light Cannon Peak State ------------ > --- POWER ------------ Light Ion Engine > --- PROPULSION ------- Light Treads Light Treads > --- UTILITY ---------- Huge Storage Unit Seismic Detector > --- WEAPON ----------- Light Cannon Light Cannon > --- INVENTORY -------- Ion Engine Ion Engine Light Treads Wheel Improved Heat Sink Large Storage Unit Light Armor Plating Hacking Suite EM Pulse Gun Light Cannon Light Cannon Light Cannon Light Cannon Light Cannon Light Cannon Light Cannon [Rating: 9] Favorites ----------- Power Light Ion Engine Engine Light Ion Engine Propulsion Light Treads Treads Light Treads Leg Aluminum Leg Utility Seismic Detector Device Seismic Detector Storage Huge Storage Unit Protection Light Armor Plating Weapon Light Cannon Energy Gun EM Pulse Gun Ballistic Cannon Light Cannon Build | -11 -10 -10 -10 ------- Run | Yrd Mat Min Exi Slots Evolved . | . . . . Power . | . . . . Propulsion . | . . . . Utility . | . . . . Weapon . | . . . . Parts Attached 12 | 4 7 . 1 Power 1 | . 1 . . Engine 1 | . 1 . . Core . | . . . . Reactor . | . . . . Propulsion 2 | 2 . . . Treads 2 | 2 . . . Leg . | . . . . Wheel . | . . . . Hover . | . . . . Flight . | . . . . Utility 4 | 1 2 . 1 Device 1 | 1 . . . Storage 2 | . 2 . . Processor . | . . . . Hackware . | . . . . Protection 1 | . . . 1 Artifact . | . . . . Weapon 5 | 1 4 . . Energy Gun 2 | 1 1 . . Energy Cannon . | . . . . Ballistic Gun . | . . . . Ballistic Cannon 3 | . 3 . . Launcher . | . . . . Special Weapon . | . . . . Impact Weapon . | . . . . Slashing Weapon . | . . . . Piercing Weapon . | . . . . Special Melee Weapon . | . . . . Unidentified Prototypes . | . . . . Parts Lost 8 | . 2 . 6 Power 2 | . 1 . 1 Propulsion 2 | . . . 2 Utility 1 | . . . 1 Weapon 3 | . 1 . 2 Highest Loss Streak 6 | . 2 . 6 To Critical Strikes . | . . . . Average Backups 11 | 2 10 16 15 Power 1 | 1 1 2 2 Propulsion 1 | 1 1 2 2 Utility 2 | . 2 4 3 Weapon 5 | . 3 8 8 Tool/Special . | . . . . Unused Backups 16 | 6 1 1 8 Power 2 | . . . 2 Propulsion 5 | 4 . . 1 Utility 5 | . 1 1 3 Weapon 4 | 2 . . 2 Tool/Special . | . . . . Average Slot Usage (%) 99 | . 99 100 98 Engine 13 | . 13 14 13 Treads 27 | . 28 28 27 Device 12 | . 14 14 6 Storage 14 | . 14 14 14 Protection 1 | . . . 7 Energy Gun 1 | . 2 . . Ballistic Cannon 26 | . 25 28 27 Peak Build Rating 9 | 7 9 9 9 Average Rating 8 | 6 7 9 8 On Entrance 7 | 6 7 9 9 Avg Prop Armor Cover (%) . | . . . . Naked Turns . | . . . . Heaviest Build 92 | 13 90 90 92 Greatest Support 40 | 40 40 40 40 Greatest Overweight (x) 4 | . 2 2 4 Average Overweight (x) 1 | . 1 2 2 Largest Inventory Capacity 25 | 8 25 25 25 Average Capacity 22 | 8 21 25 25 Most Carried 17 | 6 16 17 16 Average Carried 11 | 2 10 16 15 Final Capacity 25 | 8 25 25 25 Final Carried 16 | 2 16 16 16 Class Distribution -------------------- 100% | Mutant Dominant Class ---------------- Mutant | -10/Materials Mutant | -10/Mines Mutant | -10/Exiles Resources | -11 -10 -10 -10 ----------- Run | Yrd Mat Min Exi Matter Collected 595 | 240 172 183 . Remotely . | . . . . Salvage Created 634 | 132 351 151 . Parts 66 | 11 36 19 . Haulers Intercepted 1 | . 1 . . Recyclers Shooed 1 | . 1 . . Parts Field Recycled . | . . . . Retrieved Matter . | . . . . Parts Self-Destructed . | . . . . Prevented . | . . . . Parts Restored . | . . . . Kills | -11 -10 -10 -10 ------- Run | Yrd Mat Min Exi Combat Hostiles Destroyed 23 | . 14 9 . Guns 3 | . 3 . . Cannons 18 | . 9 9 . AOE 1 | . 1 . . Classes Destroyed 5 | 1 4 . . Tunneler 5 | 5 . . . Hauler 1 | . 1 . . Operator 1 | . 1 . . Swarmer 15 | . 9 6 . Grunt 8 | . 5 3 . Best Kill Streak 5 | 5 5 3 . Combat Bots Only 5 | . 5 3 . Max Kills in Single Turn 2 | 1 2 1 . Gunslinging . | . . . . Exploded 1 | . 1 . . Melee . | . . . . Uniques/NPCs Destroyed . | . . . . Combat | -11 -10 -10 -10 -------- Run | Yrd Mat Min Exi Hostile Shots Fired 110 | . 45 54 11 Missed 27 | . 11 16 . Hits 83 | . 34 38 11 Projectile 83 | . 34 38 11 AOE 11 | . . . 11 Damage Taken 1124 | . 310 360 454 Core 257 | . 36 32 189 Absorbed by Shields . | . . . . Core Remaining (%) 100 | 100 . . . Volleys Fired 64 | 10 30 24 . Largest 2 | 2 2 2 . Hottest 80 | 80 80 60 . Shots Fired 127 | 20 59 48 . Gun 53 | 20 33 . . Cannon 74 | . 26 48 . Launcher . | . . . . Special . | . . . . Kinetic 74 | . 26 48 . Thermal . | . . . . Explosive . | . . . . Electromagnetic 53 | 20 33 . . Robot Hit Streak 10 | 4 6 10 . Robot Miss Streak 8 | 4 3 8 . Penetration Max . | . . . . Secondary Targets . | . . . . Shots Hit Robots 66 | 10 33 23 . Core Hits 35 | 5 18 12 . Critical Kills . | . . . . Critical Parts Destroyed . | . . . . Critical Strikes 4 | . 2 2 . Blast 3 | . 1 2 . Corrupt 1 | . 1 . . Melee Attacks . | . . . . Impact . | . . . . Slashing . | . . . . Piercing . | . . . . Sneak Attacks . | . . . . Combat Hostiles . | . . . . Follow-up Attacks . | . . . . Damage Inflicted 1237 | 222 578 437 . Guns 387 | 142 245 . . Cannons 705 | . 275 430 . Explosions 113 | 80 33 . . Melee . | . . . . Ramming 32 | . 25 7 . Kinetic 705 | . 275 430 . Thermal 113 | 80 33 . . Explosive . | . . . . Electromagnetic 387 | 142 245 . . Impact . | . . . . Slashing . | . . . . Piercing . | . . . . Highest Corruption . | . . . . Average Corruption . | . . . . Corruption Purged . | . . . . Corruption Blocked . | . . . . Overload Shots . | . . . . Overflow Damage 6 | 6 . . . Projectiles . | . . . . Explosions 6 | 6 . . . Melee . | . . . . Knockbacks 9 | . 5 4 . Impact 1 | . 1 . . Kinetic 7 | . 3 4 . Secondary 1 | . 1 . . Self-Inflicted Damage . | . . . . Shots . | . . . . Rammed 6 | . 4 2 . Targets Rammed 6 | . 4 2 . Kicked . | . . . . Crushed . | . . . . Highest Temperature 126 | 126 93 42 . Average Temperature 41 | 52 44 19 . Received Heat Transfer 114 | . 51 63 . Siege Activations . | . . . . Martial Activations . | . . . . Shielding Activations . | . . . . Robots Disrupted . | . . . . Combat Hostiles . | . . . . Robots Corrupted 1 | . 1 . . Combat Hostiles 1 | . 1 . . Parts Fried 1 | . 1 . . Impact Corruptions . | . . . . Robots Melted . | . . . . Combat Hostiles . | . . . . Parts Melted . | . . . . Heat Transferred 200 | 150 50 . . Parts Sabotaged . | . . . . Parts Stolen . | . . . . Parts Stripped . | . . . . Power Chain Reactions 2 | 1 1 . . Alert | -11 -10 -10 -10 ------- Run | Yrd Mat Min Exi Maximum Alert Level . | . . . . Low Security (%) 100 | 100 100 100 . Level 1 . | . . . . Level 2 . | . . . . Level 3 . | . . . . Level 4 . | . . . . Level 5 . | . . . . High Security . | . . . . Max Security . | . . . . Peak Influence 122 | 10 122 111 . Initial . | . . . . Average 19 | 2 15 39 . Influence Increases 659 | 25 349 285 . Destroy 0b10 Robot/C 460 | . 280 180 . Destroy 0b10 Robot/NC 35 | 25 10 . . Destroy Leader 72 | . 42 30 . Successful Hack 11 | . 11 . . Disable Machine 30 | . . 30 . Destroy Structure 6 | . 6 . . Lose Combat Pursuer 45 | . . 45 . Influence Decreases 659 | 25 349 192 93 Entered New Map 93 | . . . 93 Time Decay 536 | 25 329 182 . Lost Part 20 | . 20 . . Lost Ally 10 | . . 10 . Squads Dispatched 2 | . 2 . . Investigation 1 | . 1 . . Extermination . | . . . . Reinforcement 1 | . 1 . . Assault . | . . . . Garrison . | . . . . Intercept . | . . . . Searches Triggered . | . . . . Construction Impeded . | . . . . Haulers Reinforced . | . . . . Active Scanning Responses . | . . . . Cargo Convoy Interrupts . | . . . . Stealth | -11 -10 -10 -10 --------- Run | Yrd Mat Min Exi Distress Signals 1 | . 1 . . Communications Jammed . | . . . . Distress Signals . | . . . . Times Spotted 34 | . 20 12 2 Peak Tracking Total 4 | . 4 3 1 Tactical Retreats 3 | . . 3 . Traps | -11 -10 -10 -10 ------- Run | Yrd Mat Min Exi Traps Triggered . | . . . . Indirectly . | . . . . Trap Hack Attempts . | . . . . Triggered . | . . . . Disarmed 1 | . 1 . . Reprogrammed . | . . . . Reused . | . . . . Traps Extracted . | . . . . Installed . | . . . . Triggered . | . . . . Machines | -11 -10 -10 -10 ---------- Run | Yrd Mat Min Exi Machines Disabled 2 | . . 2 . Max in Single Turn 1 | . . 1 . Machines Repaired . | . . . . Machines Dismantled . | . . . . Machines Sabotaged . | . . . . Overloaded Fab Kills . | . . . . Hacking | -11 -10 -10 -10 --------- Run | Yrd Mat Min Exi Machines Accessed 9 | . 7 . 2 Terminals 7 | . 7 . . Fabricators . | . . . . Repair Stations . | . . . . Recycling Units . | . . . . Scanalyzers . | . . . . Garrison Access . | . . . . Total Hacks 19 | . 16 . 3 Successful 9 | . 6 . 3 Failed 10 | . 10 . . Catastrophic 2 | . 2 . . Database Lockouts . | . . . . Manual 2 | . 1 . 1 Terminals 16 | . 16 . . Fabricators . | . . . . Repair Stations . | . . . . Recycling Units . | . . . . Scanalyzers . | . . . . Garrison Access . | . . . . Terminal Hacks 8 | . 5 . 3 Record 2 | . . . 2 Disarm Traps 1 | . 1 . . Recall Reinforcements 1 | . 1 . . Hauler Manifests 1 | . 1 . . Registered Components 1 | . 1 . . Zone Layout 1 | . 1 . . Proto ID Catalog 1 | . . . 1 Fabricator Hacks . | . . . . Repair Station Hacks . | . . . . Recycling Unit Hacks . | . . . . Scanalyzer . | . . . . Garrison Access Hacks . | . . . . Unauthorized Hacks 1 | . 1 . . Terminals 1 | . 1 . . Assimilate 1 | . 1 . . Fabricators . | . . . . Repair Stations . | . . . . Recycling Units . | . . . . Scanalyzers . | . . . . Garrison Access . | . . . . Data Cores Recovered . | . . . . Used . | . . . . Hacking Detections 3 | . 3 . . Full Trace Events . | . . . . Feedback Events . | . . . . Feedback Blocked . | . . . . Robot Schematics Acquired . | . . . . Robots Built . | . . . . Authchips . | . . . . Time . | . . . . Total Robot Build Rating . | . . . . Part Schematics Acquired . | . . . . Parts Built . | . . . . Authchips . | . . . . Time . | . . . . Total Part Build Rating . | . . . . Part Studies Acquired . | . . . . Parts Repaired . | . . . . Time . | . . . . Parts Recycled . | . . . . Recycled Matter . | . . . . Retrieved Matter . | . . . . Retrieved Components . | . . . . Parts Scanalyzed . | . . . . Part Schematics Acquired . | . . . . Parts Damaged . | . . . . Bothacking | -11 -10 -10 -10 ------------ Run | Yrd Mat Min Exi Used RIF Installer . | . . . . Robots Hacked . | . . . . Non-combat . | . . . . Combat . | . . . . Robot Hacks Applied . | . . . . Relay Couplers Released . | . . . . Fabnet Peak Effective % . | . . . . Robots Rewired . | . . . . Allies Hacked . | . . . . Hacks Repelled . | . . . . Allies | -11 -10 -10 -10 -------- Run | Yrd Mat Min Exi Total Allies 1 | . 1 . . Largest Group 1 | . 1 1 . Highest-Rated Group 10 | . 10 10 . Highest-Rated Ally 10 | . 10 10 . Total Orders . | . . . . Ally Attacks . | . . . . Total Damage . | . . . . Kills . | . . . . Allies Corrupted . | . . . . Allies Melted . | . . . . Intel | -11 -10 -10 -10 ------- Run | Yrd Mat Min Exi Active Infowar (turns) 3425 | 18 2458 686 263 Seismic 3425 | 18 2458 686 263 Robot Analysis Total . | . . . . Derelict Logs Recovered 1 | . . 1 . Drone Launches . | . . . . Drone Recoveries . | . . . . Exploration | -11 -10 -10 -10 ------------- Run | Yrd Mat Min Exi Turns Passed 3844 | 114 2458 686 586 Spaces Moved 1365 | 48 948 189 180 Core . | . . . . Treads 1365 | 48 948 189 180 Legs . | . . . . Wheels . | . . . . Hover . | . . . . Flight . | . . . . Fastest Speed 160 | 160 160 320 320 Average Speed 262 | 160 244 320 321 Slowest Speed 480 | 160 320 320 480 Overloaded Moves . | . . . . Propulsion Burnouts . | . . . . Robots Hopped . | . . . . Potential Cave-ins . | . . . . Cave-ins Triggered . | . . . . Exploration Rate (%) 47 | 3 95 48 42 Regions Visited 3 Branch Regions 2 Pre-discovered Areas . | . . . . Known Exits Taken . | . . . . Unknown Exits Taken 3 | 1 1 1 . Scrap Searched 1 | . . 1 . Spaces Dug . | . . . . Terrain Destroyed 5 | 2 3 . . Melee . | . . . . Projectile . | . . . . AOE 5 | 2 3 . . Terrain Rammed . | . . . . Walls Destroyed . | . . . . Machines Disabled . | . . . . Actions | -11 -10 -10 -10 --------- Run | Yrd Mat Min Exi Total 1491 | 66 1018 220 187 Wait 20 | . 12 4 4 Move 1362 | 47 947 188 180 Hop . | . . . . Pick Up 20 | 1 17 1 1 Fast Attach . | . . . . Attach 3 | 1 2 . . Detach . | . . . . Swap 9 | 3 5 . 1 Drop 7 | 4 1 1 1 Fire 64 | 10 30 24 . Melee . | . . . . Ram . | . . . . Kick . | . . . . Crush 6 | . 4 2 . Escape Stasis . | . . . . Rewire . | . . . . Trap . | . . . . Miscellaneous . | . . . . Route ------- -11/Scrapyard -10/Materials (discovered 6 exits: [*Mat x3] / *Min x2 / [*Sub]) -10/Mines -10/Exiles History --------- Turn | Location | Event 8 | -11/Scrapyard | Discovered new exit (range 2) 115 | -11/Scrapyard | Entered Materials 310 | -10/Materials | Build established: Mutant 437 | -10/Materials | Discovered new exit (range 16) 615 | -10/Materials | Derelicts attacked the area 774 | -10/Materials | Discovered new exit (range 7) 914 | -10/Materials | Discovered new exit (range 13) 1085 | -10/Materials | Discovered new exit (range 8) 1562 | -10/Materials | Discovered new exit (range 11) 1740 | -10/Materials | Discovered new exit (range 12) 2573 | -10/Materials | Entered Mines 2573 | -10/Mines | Accompanied by 1 ally 2947 | -10/Mines | Found a Scrap Suit stashed away for nefarious purposes 3221 | -10/Mines | Learned Materials garrison access intel 3246 | -10/Mines | Deemed a non-threat by the Exiles lab entrance 3246 | -10/Mines | Discovered new exit (range 5) 3259 | -10/Mines | Entered Exiles 3336 | -10/Exiles | Met 8R-AWN 3394 | -10/Exiles | Met EX-HEX 3477 | -10/Exiles | Met EX-BIN 3519 | -10/Exiles | Aligned with FarCom system 3522 | -10/Exiles | Given EX-Vault access code 3597 | -10/Exiles | Opened EX-Vault 3626 | -10/Exiles | Found Superbattery 3728 | -10/Exiles | Exiles lab attacked by MAIN.C 3834 | -10/Exiles | Core integrity fell below 50% 3842 | -10/Exiles | Core integrity fell below 20% 3845 | -10/Exiles | Destroyed by D-53 Grenadier with Mini Grenade Launcher Last Messages --------------- switch to a new protocol and we'll have to start from scratch again, so widespread use is pointless. ** BIN: I also got the chip to modify a portion of network signals on the fly to somewhat reduce the general severity of reported threats. 03728_ EXILES: Incoming Unaware force detected on approach from Mines. Prepare for evacuation. 03763_ EXILES: Lab perimeter alert, evacuate immediately. 03824_ Machine disabled. 03828_ Lgt. Cannon destroyed. 03830_ Lgt. Ion Engine destroyed. 03830_ Lgt. Armor Plating destroyed. 03830_ Lgt. Treads destroyed. 03831_ The unstable cave ceiling collapses. 03837_ Lgt. Cannon destroyed. 03841_ Lgt. Treads destroyed. 03844_ The unstable cave ceiling collapses. Map ----- +----------------------------------------------------+ | ?????????????????????####??# ##""""""#???????? | | ?????????????????????"""""?# #########???????? | | ????????????????????"""" ## #???????????????? | | ???????????????????#""X" #???????????????? | | ???????????????????#" #???????????????? | | ???????????????????#" ## #???????????????? | | ???????????????????#""""""?# #?#########?????? | | ????????????????????#"###??# #?#"""""""#?????? | | ???????????????????????????# #?#"""""""#?????? | | ???????????????????????????# #?#"""""""#?????? | | ??????????????????????????## ###""!""""#?????? | | ??????????????????????????#" """"#?????? | | ??????????????????????????#" """#?????? | | ??????????????????????????#" """#?????? | | ??????????????????????????#" """#?????? | | ??????????????????????????#" """#?????? | | ??????????????????????????#" """#?????? | | ??????????????????????????## """"?????? | | ?????????????????????????### """#?????? | | ???????????????????????### "X" """"?????? | | ??????????????????????## """ #?????? | | ?????????????????????## """""""""#?????? | | ????????????????????## ##########?????? | | ????????????????????# # #??????????????? | | ????????????????????## #??????????????? | | ????????????????????#" @ ##??????????????? | | ?????????????????"""" ##???########### | | ???????????????? "" "" #####"""""""""# | | ??????????????? " " " """ """" | | ????????????????? "" " | | ??????????????? d " "" | | ?????????????? " | | ??????????????? " | | ??????????????? | | ??????????????? """""" g | | ?????????????? ######""" | | ?????????????? ""#?????#####""" | | ???????????????? """#??????????##""" | | ??????????????????????????????????#"""" | | ??????????????????????????????????#"" | | ??????????????????????????????????"""" | | ?????????????????????????????????? | | ????????????????????????????????? | | ????????????????????????????????? | | ???????????????????????????????? | | ????????????????????????????????? " | | ?????????????????????????????????"" """ | | ??????????????????????????????????"" " " ""#" | | ???????????????????????????????????##""" """##"""" | | ??????????????????????????????????????#""????##### | +----------------------------------------------------+ Best States ------------- Heat Dissipation 25 Energy Generation 10 Energy Capacity 125 Matter Stores 300 Matter Capacity 300 Sight Range 16 Terrain Scan Density 10 Armor Coverage 150 Evasion (%) 40 Recoil Reduction 2 Item Schematics ----------------- None Robot Schematics ------------------ None Fabricated ------------ Nothing Repaired ---------- Nothing Studied --------- None Alien Tech Used ----------------- None Achievements -------------- None Challenges ------------ None Game ------ Seed BombardmentAngularMegatreads Manual? 0 Play Time 00:14:52 Cumulative 61.7 hours Start 2026.07.22 @ 21:42:59 End 2026.07.22 @ 21:56:11 Sessions 1 Manual Loads 0 Difficulty Rogue Special Mode None Game No. 262 Rogue 217 Adventurer 45 Explorer 0 Win Type - Total 2 Types 2/0/0/0/0/0/0/0/0/0 Lore% 66 Gallery% 45 Achievement% 43 Wizard Run 0 Options --------- Layout 1 ASCII 0 Keyboard 0 Movement Numpad Keybinds 0 Fullscreen 1 Font 24/Smallcaps Map View 50x35 Zoom Use 0% Tactical HUD 1 Map Filters NONE Filters NONE Steam 1 RUN: bdc20209-58ea-43ed-a6b0-a82a3f747d12